Workbook

Sheet Data
A1: Blood Glucose Control Chart | N1: =TODAY() -> 2014-08-02 | AB1: Health Tracker Version 7a (2014-08-01)
A3: Report for: | B3: JohnW | O3: Notes:
A4: Start date: | B4: 2014-08-01 | O4: This data table and contents can be easily modified to suit. The number of samples per day can also be reduced. If Sampe 2 and 3 are removed, then change the macros for Mean and Standard Deviation. Take Sample1 before breakfast (ie. overnight fasting). Enter month Start Date in cell B8. Vary the tolerance levels (UCL and LCL) by changing the desired Control Limit value at B10. (1s - 100%, 2s - 200%, 3s - 300%). Desired Weight and Waist measurements are set for males (Reduce for females as appropriate) (Suggestion - Change initial values in columns D, N, O, P, U and X to averages from previous month) Version 6 - Added tracking for waist size
A5: End date: | B5: =B44 -> 2014-08-31
A7: Blood Glucose Unit: | B7: mmol/L
A8: Control Limits: | B8: 1
A9: Desired Weight: | B9: 80 | C9: (kg)
A10: Desired Stomach: | B10: 108 | C10: (cm)
B12: Sample Date | D12: Blood Glucose | G12: Mean (Daily Average) | H12: Sample Mean (Average of All Sample1) | I12: Sample Mean (Average of All Means) | J12: Standard Deviation (since day 1) | K12: Standard Deviation (for month) | L12: Lower Control Limit | M12: Upper Control Limit | N12: Blood Pressure | U12: Other Health Factors
B13: Date | C13: Time | D13: Sample 1 (Morning) | E13: Sample 2 | F13: Sample 3 | N13: Systolic | O13: Diastolic | P13: Pulse | Q13: (UCL Syst) | R13: (Av Syst) | S13: (UCL Diast) | T13: (Av Diast) | U13: Weight (Kg) | V13: Av. Weight | W13: Desired Target Weight | X13: Stomach (cm) | Y13: Av. Waist | Z13: Desired Target Waist | AA13: Diet | AB13: Medication / Exercise
B14: =$B$4 -> 2014-08-01 | C14: 06:00:00 | D14: 6.5 | E14: =AVERAGE(D14) -> 6.5 | F14: =AVERAGE(D14:E14) -> 6.5 | G14: =AVERAGE(D14:F14) -> 6.5 | H14: =AVERAGE($D$14:$D$44) -> 6.503225806 | I14: =AVERAGE($G$14:$G$44) -> 6.503225806 | J14: =STDEV($D$14:F14) -> 0 | K14: =AVERAGE($J$14:$J$44) -> 0.0005730398181 | L14: =I14-($B$8*K14) -> 6.502652767 | M14: =I14+($B$8*K14) -> 6.503798846 | N14: 130 | O14: 80 | P14: 85 | Q14: 139 | R14: 131.8709677 | S14: 89 | T14: 82.09677419 | U14: 83 | V14: 83.78709677 | W14: 80 | X14: 110 | Y14: =AVERAGE($X$14:$X$44) -> 110 | Z14: =$B$10 -> 108 | AA14: Fair
B15: =B14+1 -> 2014-08-02 | C15: 06:00:00 | D15: 6.5 | E15: 6.5 | F15: 6.5 | G15: 6.5 | H15: =AVERAGE($D$14:$D$44) -> 6.503225806 | I15: 6.503225806 | J15: =STDEV($D$14:F15) -> 0 | K15: 0.0005730398181 | L15: 6.502652767 | M15: 6.503798846 | N15: 130 | O15: 80 | P15: 85 | Q15: 139 | R15: =AVERAGE($N$14:$N$44) -> 130 | S15: 89 | T15: =AVERAGE($O$14:$O$44) -> 80 | U15: 83 | V15: =AVERAGE($U$14:$U$44) -> 83 | W15: =$B$9 -> 80 | X15: 110 | Y15: =AVERAGE($X$14:$X$44) -> 110 | Z15: =$B$10 -> 108 | AA15: Fair
B16: =B15+1 -> 2014-08-03 | C16: 06:00:00 | D16: 6.5 | E16: =AVERAGE(D16) -> 6.5 | F16: =AVERAGE(D16:E16) -> 6.5 | G16: 6.5 | H16: 6.503225806 | I16: 6.503225806 | J16: =STDEV($D$14:F16) -> 0 | K16: 0.0005730398181 | L16: 6.502652767 | M16: 6.503798846 | N16: 130 | O16: 80 | P16: 85 | Q16: 139 | R16: 130 | S16: 89 | T16: 80 | U16: 83 | V16: 83 | W16: 80 | X16: 110 | Y16: 110 | Z16: 108 | AA16: Fair
B17: 2014-08-04 | C17: 06:00:00 | D17: 6.5 | E17: =AVERAGE(D17) -> 6.5 | F17: =AVERAGE(D17:E17) -> 6.5 | G17: 6.5 | H17: 6.503225806 | I17: 6.503225806 | J17: =STDEV($D$14:F17) -> 0 | K17: 0.0005730398181 | L17: 6.502652767 | M17: 6.503798846 | N17: 130 | O17: 80 | P17: 85 | Q17: 139 | R17: 130 | S17: 89 | T17: 80 | U17: 83 | V17: 83 | W17: 80 | X17: 110 | Y17: 110 | Z17: 108 | AA17: Fair
B18: 2014-08-05 | C18: 06:00:00 | D18: 6.5 | E18: 6.5 | F18: 6.5 | G18: 6.5 | H18: 6.503225806 | I18: 6.503225806 | J18: =STDEV($D$14:F18) -> 0 | K18: 0.0005730398181 | L18: 6.502652767 | M18: 6.503798846 | N18: 130 | O18: 80 | P18: 85 | Q18: 139 | R18: 130 | S18: 89 | T18: 80 | U18: 83 | V18: 83 | W18: 80 | X18: 110 | Y18: 110 | Z18: 108 | AA18: Fair
B19: 2014-08-06 | C19: 06:00:00 | D19: 6.5 | E19: 6.5 | F19: 6.5 | G19: 6.5 | H19: 6.503225806 | I19: 6.503225806 | J19: =STDEV($D$14:F19) -> 0 | K19: 0.0005730398181 | L19: 6.502652767 | M19: 6.503798846 | N19: 130 | O19: 80 | P19: 85 | Q19: 139 | R19: 130 | S19: 89 | T19: 80 | U19: 83 | V19: 83 | W19: 80 | X19: 110 | Y19: 110 | Z19: 108 | AA19: Fair
B20: 2014-08-07 | C20: 06:00:00 | D20: 6.5 | E20: 6.5 | F20: 6.5 | G20: 6.5 | H20: 6.503225806 | I20: 6.503225806 | J20: =STDEV($D$14:F20) -> 0 | K20: 0.0005730398181 | L20: 6.502652767 | M20: 6.503798846 | N20: 130 | O20: 80 | P20: 85 | Q20: 139 | R20: 130 | S20: 89 | T20: 80 | U20: 83 | V20: 83 | W20: 80 | X20: 110 | Y20: 110 | Z20: 108 | AA20: Fair
B21: 2014-08-08 | C21: 06:00:00 | D21: 6.5 | E21: 6.5 | F21: 6.5 | G21: 6.5 | H21: 6.503225806 | I21: 6.503225806 | J21: =STDEV($D$14:F21) -> 0 | K21: 0.0005730398181 | L21: 6.502652767 | M21: 6.503798846 | N21: 130 | O21: 80 | P21: 85 | Q21: 139 | R21: 130 | S21: 89 | T21: 80 | U21: 83 | V21: 83 | W21: 80 | X21: 110 | Y21: 110 | Z21: 108 | AA21: Fair
B22: 2014-08-09 | C22: 06:00:00 | D22: 6.5 | E22: 6.5 | F22: 6.5 | G22: 6.5 | H22: 6.503225806 | I22: 6.503225806 | J22: =STDEV($D$14:F22) -> 0 | K22: 0.0005730398181 | L22: 6.502652767 | M22: 6.503798846 | N22: 130 | O22: 80 | P22: 85 | Q22: 139 | R22: 130 | S22: 89 | T22: 80 | U22: 83 | V22: 83 | W22: 80 | X22: 110 | Y22: 110 | Z22: 108 | AA22: Fair
B23: 2014-08-10 | C23: 06:00:00 | D23: 6.5 | E23: 6.5 | F23: 6.5 | G23: 6.5 | H23: 6.503225806 | I23: 6.503225806 | J23: =STDEV($D$14:F23) -> 0 | K23: 0.0005730398181 | L23: 6.502652767 | M23: 6.503798846 | N23: 130 | O23: 80 | P23: 85 | Q23: 139 | R23: 130 | S23: 89 | T23: 80 | U23: 83 | V23: 83 | W23: 80 | X23: 110 | Y23: 110 | Z23: 108 | AA23: Fair
B24: 2014-08-11 | C24: 06:00:00 | D24: 6.5 | E24: 6.5 | F24: 6.5 | G24: 6.5 | H24: 6.503225806 | I24: 6.503225806 | J24: =STDEV($D$14:F24) -> 0 | K24: 0.0005730398181 | L24: 6.502652767 | M24: 6.503798846 | N24: 130 | O24: 80 | P24: 85 | Q24: 139 | R24: 130 | S24: 89 | T24: 80 | U24: 83 | V24: 83 | W24: 80 | X24: 110 | Y24: 110 | Z24: 108 | AA24: Fair
B25: 2014-08-12 | C25: 06:00:00 | D25: 6.5 | E25: 6.5 | F25: 6.5 | G25: 6.5 | H25: 6.503225806 | I25: 6.503225806 | J25: =STDEV($D$14:F25) -> 0 | K25: 0.0005730398181 | L25: 6.502652767 | M25: 6.503798846 | N25: 130 | O25: 80 | P25: 85 | Q25: 139 | R25: 130 | S25: 89 | T25: 80 | U25: 83 | V25: 83 | W25: 80 | X25: 110 | Y25: 110 | Z25: 108 | AA25: Fair
B26: 2014-08-13 | C26: 06:00:00 | D26: 6.5 | E26: 6.5 | F26: 6.5 | G26: 6.5 | H26: 6.503225806 | I26: 6.503225806 | J26: =STDEV($D$14:F26) -> 0 | K26: 0.0005730398181 | L26: 6.502652767 | M26: 6.503798846 | N26: 130 | O26: 80 | P26: 85 | Q26: 139 | R26: 130 | S26: 89 | T26: 80 | U26: 83 | V26: 83 | W26: 80 | X26: 110 | Y26: 110 | Z26: 108 | AA26: Fair
B27: 2014-08-14 | C27: 06:00:00 | D27: 6.5 | E27: 6.5 | F27: 6.5 | G27: 6.5 | H27: 6.503225806 | I27: 6.503225806 | J27: =STDEV($D$14:F27) -> 0 | K27: 0.0005730398181 | L27: 6.502652767 | M27: 6.503798846 | N27: 130 | O27: 80 | P27: 85 | Q27: 139 | R27: 130 | S27: 89 | T27: 80 | U27: 83 | V27: 83 | W27: 80 | X27: 110 | Y27: 110 | Z27: 108 | AA27: Fair
B28: 2014-08-15 | C28: 06:00:00 | D28: 6.5 | E28: 6.5 | F28: 6.5 | G28: 6.5 | H28: 6.503225806 | I28: 6.503225806 | J28: =STDEV($D$14:F28) -> 0 | K28: 0.0005730398181 | L28: 6.502652767 | M28: 6.503798846 | N28: 130 | O28: 80 | P28: 85 | Q28: 139 | R28: 130 | S28: 89 | T28: 80 | U28: 83 | V28: 83 | W28: 80 | X28: 110 | Y28: 110 | Z28: 108 | AA28: Fair
B29: 2014-08-16 | C29: 06:00:00 | D29: 6.5 | E29: 6.5 | F29: 6.5 | G29: 6.5 | H29: 6.503225806 | I29: 6.503225806 | J29: =STDEV($D$14:F29) -> 0 | K29: 0.0005730398181 | L29: 6.502652767 | M29: 6.503798846 | N29: 130 | O29: 80 | P29: 85 | Q29: 139 | R29: 130 | S29: 89 | T29: 80 | U29: 83 | V29: 83 | W29: 80 | X29: 110 | Y29: 110 | Z29: 108 | AA29: Fair
B30: 2014-08-17 | C30: 06:00:00 | D30: 6.5 | E30: 6.5 | F30: 6.5 | G30: 6.5 | H30: 6.503225806 | I30: 6.503225806 | J30: =STDEV($D$14:F30) -> 0 | K30: 0.0005730398181 | L30: 6.502652767 | M30: 6.503798846 | N30: 130 | O30: 80 | P30: 85 | Q30: 139 | R30: 130 | S30: 89 | T30: 80 | U30: 83 | V30: 83 | W30: 80 | X30: 110 | Y30: 110 | Z30: 108 | AA30: Fair
B31: 2014-08-18 | C31: 06:00:00 | D31: 6.5 | E31: 6.5 | F31: 6.5 | G31: 6.5 | H31: 6.503225806 | I31: 6.503225806 | J31: =STDEV($D$14:F31) -> 0 | K31: 0.0005730398181 | L31: 6.502652767 | M31: 6.503798846 | N31: 130 | O31: 80 | P31: 85 | Q31: 139 | R31: 130 | S31: 89 | T31: 80 | U31: 83 | V31: 83 | W31: 80 | X31: 110 | Y31: 110 | Z31: 108 | AA31: Fair
B32: 2014-08-19 | C32: 06:00:00 | D32: 6.5 | E32: 6.5 | F32: 6.5 | G32: 6.5 | H32: 6.503225806 | I32: 6.503225806 | J32: =STDEV($D$14:F32) -> 0 | K32: 0.0005730398181 | L32: 6.502652767 | M32: 6.503798846 | N32: 130 | O32: 80 | P32: 85 | Q32: 139 | R32: 130 | S32: 89 | T32: 80 | U32: 83 | V32: 83 | W32: 80 | X32: 110 | Y32: 110 | Z32: 108 | AA32: Fair
B33: 2014-08-20 | C33: 06:00:00 | D33: 6.5 | E33: 6.5 | F33: 6.5 | G33: 6.5 | H33: 6.503225806 | I33: 6.503225806 | J33: =STDEV($D$14:F33) -> 0 | K33: 0.0005730398181 | L33: 6.502652767 | M33: 6.503798846 | N33: 130 | O33: 80 | P33: 85 | Q33: 139 | R33: 130 | S33: 89 | T33: 80 | U33: 83 | V33: 83 | W33: 80 | X33: 110 | Y33: 110 | Z33: 108 | AA33: Fair
B34: 2014-08-21 | C34: 06:00:00 | D34: 6.5 | E34: 6.5 | F34: 6.5 | G34: 6.5 | H34: 6.503225806 | I34: 6.503225806 | J34: =STDEV($D$14:F34) -> 0 | K34: 0.0005730398181 | L34: 6.502652767 | M34: 6.503798846 | N34: 130 | O34: 80 | P34: 85 | Q34: 139 | R34: 130 | S34: 89 | T34: 80 | U34: 83 | V34: 83 | W34: 80 | X34: 110 | Y34: 110 | Z34: 108 | AA34: Fair
B35: 2014-08-22 | C35: 06:00:00 | D35: 6.5 | E35: 6.5 | F35: 6.5 | G35: 6.5 | H35: 6.503225806 | I35: 6.503225806 | J35: =STDEV($D$14:F35) -> 0 | K35: 0.0005730398181 | L35: 6.502652767 | M35: 6.503798846 | N35: 130 | O35: 80 | P35: 85 | Q35: 139 | R35: 130 | S35: 89 | T35: 80 | U35: 83 | V35: 83 | W35: 80 | X35: 110 | Y35: 110 | Z35: 108 | AA35: Fair
B36: 2014-08-23 | C36: 06:00:00 | D36: 6.5 | E36: 6.5 | F36: 6.5 | G36: 6.5 | H36: 6.503225806 | I36: 6.503225806 | J36: =STDEV($D$14:F36) -> 0 | K36: 0.0005730398181 | L36: 6.502652767 | M36: 6.503798846 | N36: 130 | O36: 80 | P36: 85 | Q36: 139 | R36: 130 | S36: 89 | T36: 80 | U36: 83 | V36: 83 | W36: 80 | X36: 110 | Y36: 110 | Z36: 108 | AA36: Fair
B37: 2014-08-24 | C37: 06:00:00 | D37: 6.5 | E37: 6.5 | F37: 6.5 | G37: 6.5 | H37: 6.503225806 | I37: 6.503225806 | J37: =STDEV($D$14:F37) -> 0 | K37: 0.0005730398181 | L37: 6.502652767 | M37: 6.503798846 | N37: 130 | O37: 80 | P37: 85 | Q37: 139 | R37: 130 | S37: 89 | T37: 80 | U37: 83 | V37: 83 | W37: 80 | X37: 110 | Y37: 110 | Z37: 108 | AA37: Fair
B38: 2014-08-25 | C38: 06:00:00 | D38: 6.5 | E38: 6.5 | F38: 6.5 | G38: 6.5 | H38: 6.503225806 | I38: 6.503225806 | J38: =STDEV($D$14:F38) -> 0 | K38: 0.0005730398181 | L38: 6.502652767 | M38: 6.503798846 | N38: 130 | O38: 80 | P38: 85 | Q38: 139 | R38: 130 | S38: 89 | T38: 80 | U38: 83 | V38: 83 | W38: 80 | X38: 110 | Y38: 110 | Z38: 108 | AA38: Fair
B39: 2014-08-26 | C39: 06:00:00 | D39: 6.5 | E39: 6.5 | F39: 6.5 | G39: 6.5 | H39: 6.503225806 | I39: 6.503225806 | J39: =STDEV($D$14:F39) -> 0 | K39: 0.0005730398181 | L39: 6.502652767 | M39: 6.503798846 | N39: 130 | O39: 80 | P39: 85 | Q39: 139 | R39: 130 | S39: 89 | T39: 80 | U39: 83 | V39: 83 | W39: 80 | X39: 110 | Y39: 110 | Z39: 108 | AA39: Fair
B40: 2014-08-27 | C40: 06:00:00 | D40: 6.5 | E40: 6.5 | F40: 6.5 | G40: 6.5 | H40: 6.503225806 | I40: 6.503225806 | J40: =STDEV($D$14:F40) -> 0 | K40: 0.0005730398181 | L40: 6.502652767 | M40: 6.503798846 | N40: 130 | O40: 80 | P40: 85 | Q40: 139 | R40: 130 | S40: 89 | T40: 80 | U40: 83 | V40: 83 | W40: 80 | X40: 110 | Y40: 110 | Z40: 108 | AA40: Fair
B41: 2014-08-28 | C41: 06:00:00 | D41: 6.5 | E41: 6.5 | F41: 6.5 | G41: 6.5 | H41: 6.503225806 | I41: 6.503225806 | J41: =STDEV($D$14:F41) -> 0 | K41: 0.0005730398181 | L41: 6.502652767 | M41: 6.503798846 | N41: 130 | O41: 80 | P41: 85 | Q41: 139 | R41: 130 | S41: 89 | T41: 80 | U41: 83 | V41: 83 | W41: 80 | X41: 110 | Y41: 110 | Z41: 108 | AA41: Fair
B42: 2014-08-29 | C42: 06:00:00 | D42: 6.5 | E42: 6.5 | F42: 6.5 | G42: 6.5 | H42: 6.503225806 | I42: 6.503225806 | J42: =STDEV($D$14:F42) -> 0 | K42: 0.0005730398181 | L42: 6.502652767 | M42: 6.503798846 | N42: 130 | O42: 80 | P42: 85 | Q42: 139 | R42: 130 | S42: 89 | T42: 80 | U42: 83 | V42: 83 | W42: 80 | X42: 110 | Y42: 110 | Z42: 108 | AA42: Fair
B43: 2014-08-30 | C43: 06:00:00 | D43: 6.5 | E43: 6.5 | F43: 6.5 | G43: 6.5 | H43: 6.503225806 | I43: 6.503225806 | J43: =STDEV($D$14:F43) -> 0 | K43: 0.0005730398181 | L43: 6.502652767 | M43: 6.503798846 | N43: 130 | O43: 80 | P43: 85 | Q43: 139 | R43: 130 | S43: 89 | T43: 80 | U43: 83 | V43: 83 | W43: 80 | X43: 110 | Y43: 110 | Z43: 108 | AA43: Fair
B44: 2014-08-31 | C44: 06:00:00 | D44: 6.6 | E44: =AVERAGE(D44) -> 6.6 | F44: =AVERAGE(D44:E44) -> 6.6 | G44: 6.6 | H44: 6.503225806 | I44: 6.503225806 | J44: =STDEV($D$14:F44) -> 0.01776423436 | K44: 0.0005730398181 | L44: 6.502652767 | M44: 6.503798846 | N44: 130 | O44: 80 | P44: 85 | Q44: 139 | R44: 130 | S44: 89 | T44: 80 | U44: 83 | V44: 83 | W44: 80 | X44: 110 | Y44: 110 | Z44: 108 | AA44: Fair
D45: =AVERAGE(D14:D44) -> 6.503225806 | F45: =AVERAGE($G$14:$G$44) -> 6.503225806 | N45: =AVERAGE(N14:N44) -> 130 | O45: =AVERAGE(O14:O44) -> 80 | P45: 85 | U45: =AVERAGE(U14:U44) -> 83 | X45: =AVERAGE(X14:X44) -> 110
O50: Notes:
O51: The monthly progress data collects accumulated month averages for tracking progress over the full year. At the start of end of each month, the final averges should be copied and pasted (values only) into the appropriate row. All accumulative values in this table should be then carried across to the templated used to create a new month HealthTracker. The progress bar graphs are generated in the Report worksheet. Some individual customisation of charts may be advised to adjust vertical column (axis) dimensions. Right click on required axis in the Report chart, then selct "format Axis". This should apply for weight and stomach measurements only.
D73: Monthly Progress Data
D78: Month Avg. Sugar Fasting | F78: Month Avg. Blood Sugar | N78: Month Avg. - Systolic | O78: Month Avg. - Dyastolic | P78: Month Avg. - Pulse | U78: Month Avg. Weight (Kg) | V78: Av. Weight | W78: Desired Target Weight | X78: Month Avg. Stomach
C79: NOV | M79: 138 | T79: 83.2
C80: DEC | M80: 134 | T80: 82.6
C81: JAN
C82: FEB
C83: MAR
C84: APR
C85: MAY
C86: JUN
C87: JUL
C88: AUG
C89: SEP
C90: OCT
C91: NOV
C92: DEC
B95: Current Month Avg. | D95: =AVERAGE($D14:$D44) -> 6.503225806 | F95: =AVERAGE($G$14:$G$44) -> 6.503225806 | N95: =AVERAGE($N14:$N44) -> 130 | O95: =AVERAGE($O14:$O44) -> 80 | P95: =AVERAGE($P14:$P44) -> 85 | U95: =AVERAGE($U14:$U44) -> 83 | X95: =AVERAGE($X14:$X44) -> 110

Sheet Report
A1: Health Trend Reports | L1: =TODAY() -> 2014-08-02
A6: Blood
A7: Pressure
A24: Weight

Sheet Plan
A1: Analysis and Improvement Plan | D1: =TODAY() -> 2014-08-02 | E1: =Data!AB1 -> Health Tracker Version 7a (2014-08-01)
A3: Health Risk Factor | B3: Severity | C3: Impact | D3: Self-Assessment (or Medical Assessments) | E3: Improvement or Mitigation Plan | F3: Percent of Total | G3: Cumulative % | H3: Line Value
A4: Diet: Over-eating | B4: 10 | C4: 20 | D4: General diet is good, but still too much snacking | E4: 1. Contiuous (daily) focus on both diet and food intake 2. Reduce causes for "snacking" - stress and anziety for a start | F4: =(C4*100/$C$19) -> 14.18439716 | G4: =F4 -> 14.18439716 | H4: =$B$23 -> 80
A5: Diet: Sugar product intake | B5: 9 | C5: 18 | D5: Needs greater self control | E5: 1. Have been using sugar sometimes in tea - will completely remove 2. Will reduce any cake, biscuit or dessert to 1 per fortnight | F5: 12.76595745 | G5: =(G4+F5) -> 26.95035461 | H5: =$B$23 -> 80
A6: Abdominal Fat (Waistline) | B6: 9 | C6: 16 | D6: This defect has developed over many years, and has no overnight solution | E6: 1. Should start to see improvement if I maintain all other actions 2. Gym and crunches will help but is not main solution | F6: 11.34751773 | G6: =(G5+F6) -> 38.29787234 | H6: 80
A7: Over-weight | B7: 8 | C7: 15 | D7: About 5kg above optimum; BMI = 26 | E7: 1. Concentrate more on daily diet and food intake 2. Restart gym visits (when it re-opens) | F7: 10.63829787 | G7: 48.93617021 | H7: 80
A8: Diet: Poor nutrition | B8: 7 | C8: 12 | D8: Need to improve ratio of salads, fresh vegies and fruit to meats and carbs | E8: 1. Better diet management 2. ork harde on maintaing a daily regimen | F8: 8.510638298 | G8: 57.44680851 | H8: 80
A9: High Blood Pressure | B9: 7 | C9: 11 | D9: 12/01/14 This seems to be getting well under control, due to better sleep, intense walking etc | E9: 1. Increase the consistency and distance of daily walks. 2. Improve sleeping times and length. 3. Keep working on reducing stress levels | F9: 7.80141844 | G9: 65.24822695 | H9: 80
A10: Excessive Stress / Anxiety | B10: 6 | C10: 9 | D10: A number of factors | E10: 1. Daily walks, and weekly gym work-outs 2. Move to Better and consistent sleep patterns | F10: 6.382978723 | G10: 71.63120567 | H10: 80
A11: Diet: High fat intake | B11: 5 | C11: 8 | D11: Too much meat and butter in diet | E11: 1. Reduce or limit meat in diet 2. Use low-fat spreads to replace butter | F11: 5.673758865 | G11: 77.30496454 | H11: 80
A12: Lack of general fitness | B12: 5 | C12: 7 | D12: Due to work anxieties and lack of consistent, restful sleeo | E12: 1. Aim to get more consistent sleep 2. Gym work helps, but longer walks (at reasonable pace) are better | F12: 4.964539007 | G12: 82.26950355 | H12: 80
A13: Lack of Sleep / Poor Sleep | B13: 6 | C13: 6 | D13: Need to have improved sleep time patterns | E13: 1. Reduce late nights. 2. Minimise low sugar levels overnght (vary Glimel) | F13: 4.255319149 | G13: 86.5248227 | H13: 80
A14: No Gym or Sport activity | B14: 7 | C14: 5 | F14: 3.546099291 | G14: 90.07092199 | H14: 80
A15: Poor Cholesterol Levels | B15: 5 | C15: 5 | F15: 3.546099291 | G15: 93.61702128 | H15: 80
A16: Medication Balance | B16: 4 | C16: 4 | F16: 2.836879433 | G16: 96.45390071 | H16: 80
A17: Lack of Physical Activity | B17: 5 | C17: 3 | F17: 2.127659574 | G17: 98.58156028 | H17: 80
A18: Sedentary Work Practice | B18: 3 | C18: 2 | F18: 1.418439716 | G18: 100 | H18: 80
A19: Totals | B19: =SUM(B4:B18) -> 96 | C19: =SUM(C4:C18) -> 141 | F19: =SUM(F4:F18) -> 100 | G19: =G18 -> 100
A21: ( <-- Sort on C then B for these cells A3 through to E18 --> ) | D21: Severity / Impact Level Guidance
D22: 0. No issues or Impact; Monitor only | E22: 10. A number of issues; minimal control; noticeable impact
A23: Set Line Value: | B23: 80 | D23: 1. Negligible issues; No Impact; Monitor & control | E23: 12. Frequent issues; minimal control; undesirable impact
D24: 2. Negligible issues or Impact; Monitor and control | E24: 14. Frequent issues; poor control; medium impact
D25: 4. Minimal issues; Minimal impact; Well controlled | E25: 16. Frequent issues; poor control; high impact
D26: 6. Occasional issues; Some Impact; Some control | E26: 18. Many issues; very poor control; very high impact
D27: 8. Number of issues; Noticeable impact; Basic control | E27: 20, Critical issue and impact / completely out of control
A34: Daily Notes and Analysis on Data Results | B34: Date | D34: Daily Observations and Suggestions
B35: =Data!$B$4 -> 2014-08-01
B36: =B35+1 -> 2014-08-02
B37: 2014-08-03
B38: 2014-08-04
B39: 2014-08-05
B40: 2014-08-06
B41: 2014-08-07
B42: 2014-08-08
B43: 2014-08-09
B44: 2014-08-10
B45: 2014-08-11
B46: 2014-08-12
B47: 2014-08-13
B48: 2014-08-14
B49: 2014-08-15
B50: 2014-08-16
B51: 2014-08-17
B52: 2014-08-18
B53: 2014-08-19
B54: 2014-08-20
B55: 2014-08-21
B56: 2014-08-22
B57: 2014-08-23
B58: 2014-08-24
B59: 2014-08-25
B60: 2014-08-26
B61: 2014-08-27
B62: 2014-08-28
B63: 2014-08-29
B64: 2014-08-30
B65: 2014-08-31

Sheet Reference (hidden)
A1: Diet | B1: Comments
A2: Excellent | B2: Conforming all day (No sugar, cheese, bread, fat, excesses)
A3: Good | B3: Minor deviation; Conforming afternoon / evening
A4: Fair | B4: Reasonable day diet; conforming in evening
A5: Poor | B5: Some deviations; especially evening
A6: Bad | B6: Totally lost the plot
A8: =TODAY() -> 2014-08-02 | B8: Chart Titles
A9: Chart1 | B9: ="Blood Pressure Chart "&TEXT($A$8,"yyyy-mm-dd")&" ("&Data!$B$3&")" -> Blood Pressure Chart 2014-08-02 (JohnW)
A10: Chart2 | B10: ="Weight Control Chart "&TEXT($A$8,"yyyy-mm-dd")&" ("&Data!$B$3&")" -> Weight Control Chart 2014-08-02 (JohnW)
A11: Chart3 | B11: ="Daily Glucose Levels (mmol/L) - Average "&TEXT($A$8,"yyyy-mm-dd")&" ("&Data!$B$3&")" -> Daily Glucose Levels (mmol/L) - Average 2014-08-02 (JohnW)
A12: Chart4 | B12: ="Daily Glucose Levels (mmol/L) - Fasting "&TEXT($A$8,"yyyy-mm-dd")&" ("&Data!$B$3&")" -> Daily Glucose Levels (mmol/L) - Fasting 2014-08-02 (JohnW)
A13: Chart5 | B13: ="Pareto Analysis "&TEXT($A$8,"yyyy-mm-dd")&" ("&Data!$B$3&")" -> Pareto Analysis 2014-08-02 (JohnW)
A14: Chart6 | B14: ="Waist/Stomach Control Chart "&TEXT($A$8,"yyyy-mm-dd")&" ("&Data!$B$3&")" -> Waist/Stomach Control Chart 2014-08-02 (JohnW)
A15: Chart7 | B15: ="Monthly Sugar Level Averages "&TEXT($A$8,"yyyy")&" ("&Data!$B$3&")" -> Monthly Sugar Level Averages 2014 (JohnW)
A16: Chart8 | B16: ="Monthly Blood Pressure Averages "&TEXT($A$8,"yyyy")&" ("&Data!$B$3&")" -> Monthly Blood Pressure Averages 2014 (JohnW)
A17: Chart9 | B17: ="Monthly Weight Averages "&TEXT($A$8,"yyyy")&" ("&Data!$B$3&")" -> Monthly Weight Averages 2014 (JohnW)
A18: Chart10 | B18: ="Monthly Stomach Measurements "&TEXT($A$8,"yyyy")&" ("&Data!$B$3&")" -> Monthly Stomach Measurements 2014 (JohnW)
A20: Level | B20: Severity / Impact
A21: 0 | B21: No issues or Impact, but need to monitor and control
A22: 1
A23: 2 | B23: Negligible issues; no Impact; completely under control
A24: 3
A25: 4 | B25: Minimal issues; well controlled; minimal impact
A26: 5
A27: 6 | B27: Occasional issues; some control; some impact
A28: 7
A29: 8 | B29: A number of issues; basic control; noticeable impact
A30: 9
A31: 10 | B31: A number of issues; minimal control; noticeable impact
A32: 11
A33: 12 | B33: Frequent issues; minimal control; undesirable impact
A34: 13
A35: 14 | B35: Frequent issues; poor control; medium impact
A36: 15
A37: 16 | B37: Frequent issues; poor control; high impact
A38: 17
A39: 18 | B39: Many issues; very poor control; very high impact
A40: 19
A41: 20 | B41: Critical issue and impact / completely out of control
